[Event "105th British-ch 2018"]
[Site "Hull"]
[Date "2018.08.04"]
[Round "8"]
[White "Derakhshani, Borna"]
[Black "Tozer, Philip"]
[Result "1-0"]
[ECO "D02"]
[WhiteElo "2315"]
[BlackElo "2142"]
[Annotator "NA"]
[PlyCount "107"]
[EventDate "2018.07.28"]
[EventType "swiss"]
[EventCountry "GBR"]
[SourceTitle "playchess.com"]
[Source "ChessBase"]
[SourceQuality "1"]
[TimeControl "40/5400+30:1800+30"]

1. d4 {[%emt 0:00:00]} e6 {[%emt 0:00:00]} 2. Bf4 {[%emt 0:00:34]} Nf6 {[%emt 0:00:00]} 3. e3 {[%emt 0:00:23]} c5 {[%emt 0:00:19]} 4. Nf3 {[%emt 0:00:28]} d5 {[%emt 0:00:15]} 5. c3 {[%emt 0:00:15]} Nc6 {[%emt 0:00:11]} 6. Nbd2 {[%emt 0:00:21]} Bd6 {[%emt 0:00:08]} 7. Bg3 {[%emt 0:00:12]} O-O {[%emt 0:00:11]} 8. Bd3 {[%emt 0:00:20]} b6 {[%emt 0:02:49]} 9. Ne5 {[%emt 0:00:27]} Bb7 {[%emt 0:01:25]} 10. O-O {[%emt 0:00:40]} Qc7 {[%emt 0:08:49]} 11. f4 {[%emt 0:00:56]} Ne7 {[%emt 0:01:21]} 12. Qb1 {[%emt 0:00:14]} g6 {[%emt 0:09:51]} 13. Bh4 {[%emt 0:05:04]} Ne8 {[%emt 0:02:01]} 14. g4 {[%emt 0:12:53]} f6 {[%emt 0:06:55]} 15. Nef3 {[%emt 0:02:49]} Nc6 {[%emt 0:12:12]} 16. a3 {[%emt 0:05:22]} Ng7 {[%emt 0:15:22]} 17. Qa2 {[%emt 0:05:29]} c4 {[%emt 0:02:21]} 18. Bc2 {[%emt 0:00:37]} b5 {[%emt 0:01:31]} 19. g5 {[%emt 0:09:56]} f5 {[%emt 0:00:45]} 20. Ne5 {[%emt 0:03:10]} a5 {[%emt 0:03:24]} 21. Bd1 {[%emt 0:07:04]} b4 {[%emt 0:06:41]} 22. Be1 {[%emt 0:00:30]} Nxe5 {[%emt 0:05:22]} 23. fxe5 {[%emt 0:01:54]} Be7 {[%emt 0:00:10]} 24. h4 {[%emt 0:01:07]} Bc6 {[%emt 0:05:01]} 25. Rf2 {[%emt 0:02:25]} Kf7 {[%emt 0:06:06]} 26. Nf1 {[%emt 0:01:40]} Ke8 {[%emt 0:00:34]} 27. Ng3 {[%emt 0:00:05]} Rh8 {[%emt 0:02:23]} 28. Ne2 {[%emt 0:01:17]} h6 {[%emt 0:00:47]} 29. Nf4 {[%emt 0:12:08]} b3 {[%emt 0:00:26]} 30. Qb1 {[%emt 0:00:12]} hxg5 {[%emt 0:00:15]} 31. Nxg6 {[%emt 0:00:10]} Rh6 {[%emt 0:00:24]} 32. h5 {[%emt 0:01:41]} Nxh5 {[%emt 0:00:50]} 33. Rh2 {[%emt 0:00:03]} Kd7 {[%emt 0:01:29]} 34. Nxe7 {[%emt 0:00:24]} Kxe7 {[%emt 0:01:10]} 35. Rxh5 {[%emt 0:00:24]} Rxh5 {[%emt 0:00:32]} 36. Bxh5 {[%emt 0:00:02]} Rh8 {[%emt 0:00:03]} 37. Bf3 {[%emt 0:00:44]} Qd8 {[%emt 0:00:26]} 38. Qd1 {[%emt 0:01:21]} Qf8 {[%emt 0:00:14]} 39. Qe2 {[%emt 0:00:55]} Qh6 {[%emt 0:00:35]} 40. Qf2 {[%emt 0:07:40]} Be8 {[%emt 0:01:23]} 41. Kf1 {[%emt 0:43:00]} Bh5 {[%emt 0:05:43]} 42. Bg2 {[%emt 0:00:00]} Bg4 {[%emt 0:02:08]} 43. Bd2 {[%emt 0:00:00]} Qh5 {[%emt 0:03:51]} 44. Re1 {[%emt 0:00:00]} Bd1 {[%emt 0:02:10]} 45. Qg3 {[%emt 0:00:00]} Bg4 {[%emt 0:05:56]} 46. Kf2 {[%emt 0:00:00]} Bd1 {[%emt 0:01:12]} 47. Rxd1 {[%emt 0:00:00]} Qxd1 {[%emt 0:00:05]} 48. Qxg5+ {[%emt 0:00:00]} Kd7 {[%emt 0:03:18]} 49. Qg7+ {[%emt 0:00:00]} Kc6 {[%emt 0:00:06]} 50. Qxh8 {[%emt 0:00:00]} Qxd2+ {[%emt 0:00:07]} 51. Kf3 {[%emt 0:00:00]} Qd1+ {[%emt 0:01:46]} 52. Kg3 {[%emt 0:00:00]} Qg4+ {[%emt 0:00:27]} 53. Kh2 {[%emt 0:00:00]} f4 {[%emt 0:00:07]} 54. Qh3 {[%emt 0:00:00]} 1-0

[Event "105th British-ch 2018"]
[Site "Hull"]
[Date "2018.08.04"]
[Round "8"]
[White "Kolbus, Dietmar"]
[Black "Maroroa, Sue Yuchan"]
[Result "1-0"]
[ECO "E81"]
[WhiteElo "2303"]
[BlackElo "2104"]
[Annotator "NA"]
[PlyCount "141"]
[EventDate "2018.07.28"]
[EventType "swiss"]
[EventCountry "GBR"]
[SourceTitle "playchess.com"]
[Source "ChessBase"]
[SourceQuality "1"]
[TimeControl "40/5400+30:1800+30"]

1. c4 {[%emt 0:00:00]} Nf6 {[%emt 0:00:00]} 2. Nc3 {[%emt 0:00:00]} g6 {[%emt 0:00:00]} 3. e4 {[%emt 0:00:00]} d6 {[%emt 0:00:00]} 4. d4 {[%emt 0:00:00]} Bg7 {[%emt 0:00:00]} 5. f3 {[%emt 0:00:11]} O-O {[%emt 0:00:03]} 6. Be3 {[%emt 0:00:05]} c5 {[%emt 0:00:10]} 7. Nge2 {[%emt 0:01:00]} Nc6 {[%emt 0:00:20]} 8. dxc5 {[%emt 0:02:40]} dxc5 {[%emt 0:00:11]} 9. Qxd8 {[%emt 0:00:09]} Rxd8 {[%emt 0:00:06]} 10. Bxc5 {[%emt 0:00:11]} Nd7 {[%emt 0:00:14]} 11. Be3 {[%emt 0:07:36]} Nde5 {[%emt 0:02:15]} 12. Nf4 {[%emt 0:02:34]} b6 {[%emt 0:03:04]} 13. Rc1 {[%emt 0:03:16]} e6 {[%emt 0:09:51]} 14. Be2 {[%emt 0:06:31]} Ba6 {[%emt 0:03:15]} 15. b3 {[%emt 0:00:41]} Nb4 {[%emt 0:05:15]} 16. O-O {[%emt 0:00:19]} g5 {[%emt 0:07:03]} 17. Nh5 {[%emt 0:00:21]} Ned3 {[%emt 0:00:14]} 18. Nxg7 {[%emt 0:04:06]} Nxc1 {[%emt 0:01:03]} 19. Rxc1 {[%emt 0:00:08]} Kxg7 {[%emt 0:00:12]} 20. Bxg5 {[%emt 0:00:06]} f6 {[%emt 0:00:27]} 21. Be3 {[%emt 0:00:20]} Rac8 {[%emt 0:03:51]} 22. Kf1 {[%emt 0:02:25]} Nc6 {[%emt 0:05:03]} 23. Kf2 {[%emt 0:05:46]} Nd4 {[%emt 0:04:58]} 24. Bf1 {[%emt 0:00:37]} Bb7 {[%emt 0:04:37]} 25. Ne2 {[%emt 0:01:35]} Nc6 {[%emt 0:02:14]} 26. Nc3 {[%emt 0:00:52]} Nd4 {[%emt 0:00:39]} 27. Ke1 {[%emt 0:00:37]} Ba6 {[%emt 0:04:04]} 28. Ne2 {[%emt 0:03:36]} Nc6 {[%emt 0:01:20]} 29. Nf4 {[%emt 0:00:37]} Kf7 {[%emt 0:03:18]} 30. Nd3 {[%emt 0:00:59]} Nd4 {[%emt 0:05:34]} 31. Nb4 {[%emt 0:01:32]} Bb7 {[%emt 0:01:00]} 32. Rd1 {[%emt 0:03:13]} Nc6 {[%emt 0:02:50]} 33. Nd3 {[%emt 0:00:58]} Ba6 {[%emt 0:03:09]} 34. Rd2 {[%emt 0:02:05]} Rd7 {[%emt 0:04:29]} 35. Rc2 {[%emt 0:04:03]} Rcd8 {[%emt 0:01:08]} 36. Rc3 {[%emt 0:00:48]} Kg7 {[%emt 0:10:49]} 37. Kf2 {[%emt 0:02:21]} Kf7 {[%emt 0:03:27]} 38. a3 {[%emt 0:01:04]} Na5 {[%emt 0:06:37]} 39. Nb4 {[%emt 0:01:12]} Bb7 {[%emt 0:00:20]} 40. Be2 {[%emt 0:01:18]} Nc6 {[%emt 0:02:23]} 41. Nxc6 {[%emt 0:30:44]} Bxc6 {[%emt 0:30:29]} 42. a4 {[%emt 0:00:52]} Rc8 {[%emt 0:00:00]} 43. Rc1 {[%emt 0:00:00]} Rb7 {[%emt 0:00:00]} 44. Ra1 {[%emt 0:00:00]} f5 {[%emt 0:00:00]} 45. e5 {[%emt 0:00:00]} a6 {[%emt 0:00:00]} 46. b4 {[%emt 0:00:00]} b5 {[%emt 0:00:00]} 47. cxb5 {[%emt 0:00:00]} axb5 {[%emt 0:00:00]} 48. a5 {[%emt 0:00:00]} Rbb8 {[%emt 0:00:00]} 49. a6 {[%emt 0:00:00]} Bd5 {[%emt 0:00:00]} 50. a7 {[%emt 0:00:00]} Ra8 {[%emt 0:00:00]} 51. Bxb5 {[%emt 0:00:00]} Rc2+ {[%emt 0:00:00]} 52. Be2 {[%emt 0:00:00]} Bc4 {[%emt 0:00:00]} 53. Re1 {[%emt 0:00:00]} Ke8 {[%emt 0:00:00]} 54. Kf1 {[%emt 0:00:00]} Rxe2 {[%emt 0:00:00]} 55. Rxe2 {[%emt 0:00:00]} Kd7 {[%emt 0:00:00]} 56. Kf2 {[%emt 0:00:00]} Bxe2 {[%emt 0:00:00]} 57. Kxe2 {[%emt 0:00:00]} Kc6 {[%emt 0:00:00]} 58. Bc5 {[%emt 0:00:00]} Kb7 {[%emt 0:00:18]} 59. Ke3 {[%emt 0:00:00]} Rg8 {[%emt 0:01:42]} 60. g3 {[%emt 0:00:00]} Rg7 {[%emt 0:02:00]} 61. Kf4 {[%emt 0:00:00]} Rg6 {[%emt 0:02:12]} 62. g4 {[%emt 0:00:00]} fxg4 {[%emt 0:00:21]} 63. fxg4 {[%emt 0:00:00]} Rg8 {[%emt 0:00:37]} 64. h4 {[%emt 0:00:00]} Ka8 {[%emt 0:01:27]} 65. g5 {[%emt 0:00:00]} Kb7 {[%emt 0:00:23]} 66. Kg4 {[%emt 0:00:00]} Ka8 {[%emt 0:00:15]} 67. Kh5 {[%emt 0:00:00]} Rg6 {[%emt 0:00:07]} 68. Kg4 {[%emt 0:01:21]} Rg8 {[%emt 0:00:13]} 69. h5 {[%emt 0:00:29]} Kb7 {[%emt 0:00:21]} 70. g6 {[%emt 0:01:26]} hxg6 {[%emt 0:00:31]} 71. h6 {[%emt 0:00:14]} 1-0

[Event "105th British-ch 2018"]
[Site "Hull"]
[Date "2018.08.04"]
[Round "8"]
[White "Muir, Andrew Joseph"]
[Black "Pollack, Oscar"]
[Result "0-1"]
[ECO "E84"]
[WhiteElo "2291"]
[BlackElo "2064"]
[Annotator "NA"]
[PlyCount "190"]
[EventDate "2018.07.28"]
[EventType "swiss"]
[EventCountry "GBR"]
[SourceTitle "playchess.com"]
[Source "ChessBase"]
[SourceQuality "1"]
[TimeControl "40/5400+30:1800+30"]

1. d4 {[%emt 0:00:00]} Nf6 {[%emt 0:00:00]} 2. c4 {[%emt 0:00:10]} g6 {[%emt 0:00:00]} 3. Nc3 {[%emt 0:00:23]} Bg7 {[%emt 0:00:00]} 4. e4 {[%emt 0:00:20]} d6 {[%emt 0:00:00]} 5. f3 {[%emt 0:00:23]} O-O {[%emt 0:00:00]} 6. Be3 {[%emt 0:00:03]} Nc6 {[%emt 0:00:06]} 7. Nge2 {[%emt 0:04:08]} a6 {[%emt 0:00:47]} 8. Qd2 {[%emt 0:00:05]} Rb8 {[%emt 0:00:17]} 9. Rc1 {[%emt 0:00:07]} Bd7 {[%emt 0:01:37]} 10. Nd1 {[%emt 0:00:06]} b5 {[%emt 0:01:28]} 11. c5 {[%emt 0:00:19]} dxc5 {[%emt 0:08:46]} 12. Rxc5 {[%emt 0:00:50]} e6 {[%emt 0:03:04]} 13. g3 {[%emt 0:09:36]} Qe7 {[%emt 0:03:56]} 14. Bg2 {[%emt 0:00:28]} Rfd8 {[%emt 0:04:08]} 15. O-O {[%emt 0:03:02]} Be8 {[%emt 0:03:31]} 16. Qc1 {[%emt 0:14:46]} Rb6 {[%emt 0:26:41]} 17. Nf2 {[%emt 0:03:52]} Qf8 {[%emt 0:04:55]} 18. Rd1 {[%emt 0:01:00]} Na5 {[%emt 0:01:07]} 19. b3 {[%emt 0:01:31]} Rc6 {[%emt 0:01:05]} 20. Nd3 {[%emt 0:01:35]} Rxc5 {[%emt 0:02:22]} 21. Nxc5 {[%emt 0:01:54]} b4 {[%emt 0:01:18]} 22. a4 {[%emt 0:12:42]} bxa3 {[%emt 0:05:01]} 23. Qxa3 {[%emt 0:06:06]} Nb7 {[%emt 0:00:26]} 24. b4 {[%emt 0:11:22]} Nd6 {[%emt 0:03:52]} 25. Qxa6 {[%emt 0:03:54]} Bb5 {[%emt 0:01:18]} 26. Qa2 {[%emt 0:00:02]} Nc4 {[%emt 0:01:01]} 27. Bf2 {[%emt 0:03:17]} Ra8 {[%emt 0:00:36]} 28. Qc2 {[%emt 0:02:00]} Na3 {[%emt 0:01:37]} 29. Qd2 {[%emt 0:01:00]} Bh6 {[%emt 0:02:06]} 30. Be3 {[%emt 0:02:59]} Bxe3+ {[%emt 0:00:56]} 31. Qxe3 {[%emt 0:00:06]} Nc2 {[%emt 0:02:29]} 32. Qd2 {[%emt 0:00:53]} Nxb4 {[%emt 0:04:11]} 33. Nc3 {[%emt 0:00:44]} Bc4 {[%emt 0:01:22]} 34. f4 {[%emt 0:03:53]} Rd8 {[%emt 0:02:05]} 35. e5 {[%emt 0:03:57]} Nfd5 {[%emt 0:02:39]} 36. N3e4 {[%emt 0:00:09]} Na6 {[%emt 0:02:14]} 37. Rc1 {[%emt 0:01:50]} Nxc5 {[%emt 0:01:50]} 38. Nxc5 {[%emt 0:00:17]} Nb6 {[%emt 0:02:23]} 39. Ne4 {[%emt 0:02:18]} Qa3 {[%emt 0:00:47]} 40. f5 {[%emt 0:03:37]} exf5 {[%emt 0:02:35]} 41. Nf6+ {[%emt 0:07:10]} Kf8 {[%emt 0:01:34]} 42. Qh6+ {[%emt 0:09:48]} Ke7 {[%emt 0:02:40]} 43. Nxh7 {[%emt 0:00:04]} Kd7 {[%emt 0:03:07]} 44. d5 {[%emt 0:06:20]} Bxd5 {[%emt 0:03:28]} 45. Nf6+ {[%emt 0:00:26]} Kc8 {[%emt 0:00:30]} 46. Nxd5 {[%emt 0:03:25]} Nxd5 {[%emt 0:00:01]} 47. Rd1 {[%emt 0:00:09]} Qc5+ {[%emt 0:03:44]} 48. Kh1 {[%emt 0:00:40]} Ne3 {[%emt 0:01:36]} 49. Rxd8+ {[%emt 0:02:29]} Kxd8 {[%emt 0:00:12]} 50. Qh8+ {[%emt 0:00:24]} Kd7 {[%emt 0:00:03]} 51. e6+ {[%emt 0:00:51]} Kxe6 {[%emt 0:04:18]} 52. Qa1 {[%emt 0:01:17]} Nxg2 {[%emt 0:00:51]} 53. Kxg2 {[%emt 0:00:18]} Qd5+ {[%emt 0:00:34]} 54. Kg1 {[%emt 0:00:06]} c5 {[%emt 0:00:32]} 55. Qa6+ {[%emt 0:00:09]} Ke5 {[%emt 0:00:47]} 56. Qb6 {[%emt 0:00:37]} c4 {[%emt 0:01:30]} 57. Qb8+ {[%emt 0:00:07]} Kf6 {[%emt 0:00:25]} 58. Qh8+ {[%emt 0:00:03]} Ke7 {[%emt 0:00:10]} 59. Qh4+ {[%emt 0:00:51]} Ke6 {[%emt 0:00:34]} 60. Qh8 {[%emt 0:00:02]} Qd1+ {[%emt 0:00:30]} 61. Kg2 {[%emt 0:00:17]} Qd2+ {[%emt 0:00:43]} 62. Kh3 {[%emt 0:00:33]} Qd5 {[%emt 0:02:33]} 63. Qe8+ {[%emt 0:00:27]} Kf6 {[%emt 0:00:22]} 64. Qh8+ {[%emt 0:00:07]} Ke7 {[%emt 0:00:06]} 65. Qg7 {[%emt 0:01:46]} Qe6 {[%emt 0:00:49]} 66. Kg2 {[%emt 0:00:46]} Qf6 {[%emt 0:01:43]} 67. Qg8 {[%emt 0:00:08]} f4 {[%emt 0:00:40]} 68. Qb8 {[%emt 0:03:08]} Qc6+ {[%emt 0:00:05]} 69. Kh3 {[%emt 0:02:29]} f3 {[%emt 0:02:19]} 70. g4 {[%emt 0:00:23]} Ke6 {[%emt 0:01:48]} 71. Qf4 {[%emt 0:00:50]} c3 {[%emt 0:02:23]} 72. Qe3+ {[%emt 0:00:17]} Kd7 {[%emt 0:00:01]} 73. Qd4+ {[%emt 0:00:30]} Kc8 {[%emt 0:00:25]} 74. Qh8+ {[%emt 0:00:46]} Kb7 {[%emt 0:00:28]} 75. Qf8 {[%emt 0:00:20]} Qc4 {[%emt 0:02:01]} 76. Qe7+ {[%emt 0:00:15]} Kc6 {[%emt 0:00:25]} 77. Qf6+ {[%emt 0:00:40]} Kb5 {[%emt 0:00:19]} 78. Qxf3 {[%emt 0:00:02]} c2 {[%emt 0:00:29]} 79. Qb7+ {[%emt 0:00:05]} Ka4 {[%emt 0:00:09]} 80. Qa7+ {[%emt 0:01:46]} Kb3 {[%emt 0:00:11]} 81. Qb7+ {[%emt 0:00:32]} Ka2 {[%emt 0:00:13]} 82. Qa7+ {[%emt 0:01:18]} Kb2 {[%emt 0:00:15]} 83. Qf2 {[%emt 0:00:06]} Qb3+ {[%emt 0:00:46]} 84. Kh4 {[%emt 0:00:24]} Kb1 {[%emt 0:00:14]} 85. Qe1+ {[%emt 0:00:28]} c1=Q {[%emt 0:00:11]} 86. Qe4+ {[%emt 0:00:03]} Kb2 {[%emt 0:00:38]} 87. Qe2+ {[%emt 0:00:20]} Qcc2 {[%emt 0:00:31]} 88. Qe5+ {[%emt 0:00:02]} Kc1 {[%emt 0:00:19]} 89. Qa1+ {[%emt 0:00:49]} Kd2 {[%emt 0:00:20]} 90. Qd4+ {[%emt 0:00:04]} Qcd3 {[%emt 0:00:13]} 91. Qf2+ {[%emt 0:00:11]} Qe2 {[%emt 0:00:12]} 92. Qd4+ {[%emt 0:00:15]} Ke1 {[%emt 0:00:32]} 93. Qa1+ {[%emt 0:00:05]} Qbd1 {[%emt 0:00:27]} 94. Qc3+ {[%emt 0:00:07]} Kf1 {[%emt 0:00:09]} 95. Qf6+ {[%emt 0:00:33]} Qf2+ {[%emt 0:00:12]} 0-1

[Event "105th British-ch 2018"]
[Site "Hull"]
[Date "2018.08.04"]
[Round "8"]
[White "Zapolskis, Antanas J"]
[Black "Young"]
[Result "0-1"]
[ECO "B86"]
[WhiteElo "2283"]
[BlackElo "1962"]
[Annotator "NA"]
[PlyCount "52"]
[EventDate "2018.07.28"]
[EventType "swiss"]
[EventCountry "GBR"]
[SourceTitle "playchess.com"]
[Source "ChessBase"]
[SourceQuality "1"]
[TimeControl "40/5400+30:1800+30"]

1. e4 {[%emt 0:00:00]} c5 {[%emt 0:00:00]} 2. Nf3 {[%emt 0:00:00]} d6 {[%emt 0:00:00]} 3. d4 {[%emt 0:00:00]} cxd4 {[%emt 0:00:00]} 4. Nxd4 {[%emt 0:00:03]} Nf6 {[%emt 0:00:12]} 5. Nc3 {[%emt 0:00:08]} a6 {[%emt 0:00:08]} 6. Bc4 {[%emt 0:00:09]} e6 {[%emt 0:00:08]} 7. Bb3 {[%emt 0:00:09]} Nbd7 {[%emt 0:00:14]} 8. f4 {[%emt 0:00:45]} Nc5 {[%emt 0:00:37]} 9. e5 {[%emt 0:00:21]} Nfd7 {[%emt 0:00:20]} 10. exd6 {[%emt 0:02:22]} Nf6 {[%emt 0:00:18]} 11. Qe2 {[%emt 0:06:46]} Bxd6 {[%emt 0:00:42]} 12. Nf5 {[%emt 0:02:20]} O-O {[%emt 0:00:24]} 13. Nxd6 {[%emt 0:00:11]} Qxd6 {[%emt 0:00:09]} 14. Bd2 {[%emt 0:00:29]} b5 {[%emt 0:05:13]} 15. O-O-O {[%emt 0:00:42]} Bd7 {[%emt 0:19:54]} 16. Be3 {[%emt 0:09:57]} Nxb3+ {[%emt 0:03:50]} 17. axb3 {[%emt 0:00:13]} Qc7 {[%emt 0:00:51]} 18. Bd4 {[%emt 0:15:42]} Qxf4+ {[%emt 0:07:07]} 19. Kb1 {[%emt 0:00:15]} Bc6 {[%emt 0:12:59]} 20. Rhf1 {[%emt 0:00:21]} Qg4 {[%emt 0:07:12]} 21. Qe5 {[%emt 0:02:54]} b4 {[%emt 0:20:02]} 22. Rxf6 {[%emt 0:00:22]} bxc3 {[%emt 0:00:22]} 23. Rf4 {[%emt 0:00:28]} Qxd1+ {[%emt 0:02:17]} 24. Ka2 {[%emt 0:00:06]} f6 {[%emt 0:00:47]} 25. Qxe6+ {[%emt 0:00:37]} Kh8 {[%emt 0:00:17]} 26. Qxc6 {[%emt 0:00:37]} Qc1 {[%emt 0:00:27]} 0-1

[Event "105th British-ch 2018"]
[Site "Hull"]
[Date "2018.08.04"]
[Round "8"]
[White "Pritchett, Craig William"]
[Black "Emms, John M"]
[Result "1-0"]
[ECO "A09"]
[WhiteElo "2274"]
[BlackElo "2488"]
[Annotator "ChessBase"]
[PlyCount "117"]
[EventDate "2018.07.28"]
[EventType "swiss"]
[EventCountry "GBR"]
[SourceTitle "playchess.com"]
[Source "ChessBase"]
[SourceQuality "1"]
[TimeControl "40/5400+30:1800+30"]

1. Nf3 {[%emt 0:00:00]} d5 {[%emt 0:00:52]} 2. e3 {[%emt 0:00:32]} Nf6 {[%emt 0:01:24]} 3. c4 {[%emt 0:00:23]} dxc4 {[%emt 0:03:33]} 4. Bxc4 {[%emt 0:00:54]} e6 {[%emt 0:00:05]} 5. O-O {[%emt 0:02:05]} a6 {[%emt 0:00:23]} 6. Re1 {[%emt 0:04:46]} c5 {[%emt 0:03:38]} 7. b3 {[%emt 0:04:58]} Nc6 {[%emt 0:09:56]} 8. Bb2 {[%emt 0:00:36]} Be7 {[%emt 0:01:06]} 9. Nc3 {[%emt 0:02:14]} O-O {[%emt 0:16:10]} 10. Qc2 {[%emt 0:18:54]} b5 {[%emt 0:05:09]} 11. Bf1 {[%emt 0:01:30]} Bb7 {[%emt 0:01:07]} 12. a3 {[%emt 0:02:47]} Rc8 {[%emt 0:07:28]} 13. Ne2 {[%emt 0:14:11]} h6 {[%emt 0:09:30]} 14. Ng3 {[%emt 0:01:44]} Na5 {[%emt 0:04:36]} 15. Rab1 {[%emt 0:03:06]} Qb6 {[%emt 0:02:30]} 16. d3 {[%emt 0:00:42]} Rfd8 {[%emt 0:05:45]} 17. Ba1 {[%emt 0:03:42]} Nc6 {[%emt 0:01:46]} 18. h3 {[%emt 0:03:20]} Nb8 {[%emt 0:00:29]} 19. Ne5 {[%emt 0:06:39]} Nbd7 {[%emt 0:00:59]} 20. f4 {[%emt 0:05:10]} Nxe5 {[%emt 0:01:17]} 21. fxe5 {[%emt 0:00:40]} Nd7 {[%emt 0:01:16]} 22. Qf2 {[%emt 0:06:14]} Nf8 {[%emt 0:00:49]} 23. Be2 {[%emt 0:01:38]} Bh4 {[%emt 0:07:57]} 24. Rf1 {[%emt 0:01:45]} Rc7 {[%emt 0:01:06]} 25. b4 {[%emt 0:05:31]} Ng6 {[%emt 0:01:40]} 26. d4 {[%emt 0:02:55]} cxd4 {[%emt 0:05:58]} 27. Bxd4 {[%emt 0:00:08]} Rxd4 {[%emt 0:00:48]} 28. exd4 {[%emt 0:00:06]} Bxg3 {[%emt 0:00:18]} 29. Qxg3 {[%emt 0:00:06]} Qxd4+ {[%emt 0:00:02]} 30. Kh2 {[%emt 0:03:54]} Rc3 {[%emt 0:01:46]} 31. Bf3 {[%emt 0:00:35]} Nxe5 {[%emt 0:02:21]} 32. Rbd1 {[%emt 0:00:59]} Nxf3+ {[%emt 0:00:59]} 33. Rxf3 {[%emt 0:00:25]} Qxd1 {[%emt 0:00:10]} 34. Rxc3 {[%emt 0:00:05]} Bd5 {[%emt 0:01:53]} 35. Rc8+ {[%emt 0:01:55]} Kh7 {[%emt 0:00:01]} 36. Qb8 {[%emt 0:00:15]} Qd4 {[%emt 0:01:44]} 37. Rh8+ {[%emt 0:00:19]} Kg6 {[%emt 0:00:02]} 38. Qg3+ {[%emt 0:00:29]} Kf6 {[%emt 0:00:02]} 39. Rh7 {[%emt 0:00:49]} g6 {[%emt 0:00:42]} 40. Rxh6 {[%emt 0:00:52]} Kg7 {[%emt 0:01:29]} 41. Rh4 {[%emt 0:30:21]} Qf6 {[%emt 0:03:50]} 42. Rf4 {[%emt 0:00:00]} Qb2 {[%emt 0:00:48]} 43. Rf2 {[%emt 0:00:00]} Qd4 {[%emt 0:01:51]} 44. Rf4 {[%emt 0:00:00]} Qb2 {[%emt 0:00:19]} 45. h4 {[%emt 0:00:00]} f6 {[%emt 0:04:56]} 46. Rg4 {[%emt 0:00:00]} Qc2 {[%emt 0:00:58]} 47. Qd6 {[%emt 0:00:00]} Qf5 {[%emt 0:03:26]} 48. Qc7+ {[%emt 0:00:00]} Kh6 {[%emt 0:03:12]} 49. Rf4 {[%emt 0:00:00]} Qe5 {[%emt 0:01:55]} 50. Qxe5 {[%emt 0:00:00]} fxe5 {[%emt 0:00:03]} 51. Rf7 {[%emt 0:00:17]} g5 {[%emt 0:00:29]} 52. hxg5+ {[%emt 0:00:52]} Kxg5 {[%emt 0:00:01]} 53. Kg3 {[%emt 0:00:26]} e4 {[%emt 0:00:33]} 54. Kf2 {[%emt 0:00:36]} e5 {[%emt 0:00:12]} 55. Rf8 {[%emt 0:00:55]} Kg4 {[%emt 0:00:40]} 56. Rf6 {[%emt 0:00:39]} e3+ {[%emt 0:00:30]} 57. Kxe3 {[%emt 0:00:07]} Bxg2 {[%emt 0:00:05]} 58. Rg6+ {[%emt 0:00:42]} Kh3 {[%emt 0:00:04]} 59. Rxa6 {[%emt 0:00:38]} 1-0

[Event "105th British-ch 2018"]
[Site "Hull"]
[Date "2018.08.04"]
[Round "8"]
[White "Britton, Richard"]
[Black "Roberson, Peter T"]
[Result "0-1"]
[ECO "C00"]
[WhiteElo "2249"]
[BlackElo "2401"]
[Annotator "NA"]
[PlyCount "80"]
[EventDate "2018.07.28"]
[EventType "swiss"]
[EventCountry "GBR"]
[SourceTitle "playchess.com"]
[Source "ChessBase"]
[SourceQuality "1"]
[TimeControl "40/5400+30:1800+30"]

1. e4 {[%emt 0:00:00]} c5 {[%emt 0:00:00]} 2. Nf3 {[%emt 0:00:00]} e6 {[%emt 0:00:00]} 3. d3 {[%emt 0:00:04]} d5 {[%emt 0:00:06]} 4. Nbd2 {[%emt 0:00:05]} Nc6 {[%emt 0:00:34]} 5. g3 {[%emt 0:00:09]} Nf6 {[%emt 0:00:11]} 6. Bg2 {[%emt 0:00:07]} Be7 {[%emt 0:00:08]} 7. O-O {[%emt 0:00:06]} O-O {[%emt 0:00:05]} 8. Re1 {[%emt 0:00:03]} Qc7 {[%emt 0:00:13]} 9. e5 {[%emt 0:06:49]} Nd7 {[%emt 0:00:09]} 10. Qe2 {[%emt 0:00:06]} b5 {[%emt 0:00:43]} 11. Nf1 {[%emt 0:00:06]} Bb7 {[%emt 0:00:45]} 12. Bf4 {[%emt 0:04:27]} Rfc8 {[%emt 0:01:42]} 13. h4 {[%emt 0:00:39]} Qd8 {[%emt 0:04:43]} 14. N1h2 {[%emt 0:01:24]} a5 {[%emt 0:02:38]} 15. h5 {[%emt 0:14:19]} h6 {[%emt 0:00:13]} 16. Qd2 {[%emt 0:03:51]} a4 {[%emt 0:08:00]} 17. a3 {[%emt 0:10:24]} Nf8 {[%emt 0:17:18]} 18. Ng4 {[%emt 0:08:01]} Nh7 {[%emt 0:00:36]} 19. Rad1 {[%emt 0:06:03]} Bf8 {[%emt 0:06:32]} 20. Qc1 {[%emt 0:02:26]} b4 {[%emt 0:01:47]} 21. c4 {[%emt 0:03:51]} bxc3 {[%emt 0:08:37]} 22. bxc3 {[%emt 0:00:07]} Rab8 {[%emt 0:00:45]} 23. c4 {[%emt 0:03:56]} Nd4 {[%emt 0:01:06]} 24. Nd2 {[%emt 0:13:32]} Ng5 {[%emt 0:04:41]} 25. Nh2 {[%emt 0:05:47]} Qe7 {[%emt 0:06:09]} 26. g4 {[%emt 0:12:53]} Bc6 {[%emt 0:09:09]} 27. Bg3 {[%emt 0:01:06]} Nb3 {[%emt 0:10:31]} 28. Nxb3 {[%emt 0:00:29]} axb3 {[%emt 0:00:42]} 29. f4 {[%emt 0:00:07]} Nh7 {[%emt 0:00:39]} 30. Qd2 {[%emt 0:01:44]} dxc4 {[%emt 0:03:21]} 31. dxc4 {[%emt 0:00:07]} Rd8 {[%emt 0:00:09]} 32. Qb2 {[%emt 0:00:48]} Bxg2 {[%emt 0:03:20]} 33. Kxg2 {[%emt 0:00:03]} Qb7+ {[%emt 0:00:07]} 34. Nf3 {[%emt 0:00:29]} Rxd1 {[%emt 0:00:05]} 35. Rxd1 {[%emt 0:00:06]} Qe4 {[%emt 0:00:02]} 36. Rd2 {[%emt 0:00:13]} Qxc4 {[%emt 0:01:03]} 37. Kf2 {[%emt 0:00:54]} Qe4 {[%emt 0:02:24]} 38. Re2 {[%emt 0:00:48]} Qc6 {[%emt 0:00:28]} 39. Nd2 {[%emt 0:02:04]} c4 {[%emt 0:01:06]} 40. Qc3 {[%emt 0:00:50]} b2 {[%emt 0:03:06]} 0-1